bitfinex/quotes_SOLUSD_20241029
["timestamp","ask_amount","ask_price","bid_price","bid_amount"]
[1730185203479,35.63297236,180.5,180.4,19.4012]
[1730185203480,7.52319309,180.43,180.4,19.4012]
[1730185203952,7.52319309,180.44,180.4,13.858]
[1730185204759,7.52319309,180.43,180.4,13.858]
[1730185206365,7.52319309,180.44,180.4,13.858]
[1730185206775,7.52319309,180.43,180.4,13.858]
[1730185208477,7.52319309,180.44,180.4,13.858]
[1730185208684,7.52319309,180.43,180.4,13.858]
[1730185209167,5.5414,180.46,180.4,13.858]
[1730185209168,7.52319309,180.44,180.4,13.858]
[1730185210780,7.52319309,180.45,180.4,13.858]
[1730185211077,7.52319309,180.47,180.41,7.52319309]
[1730185211251,7.52319309,180.48,180.43,7.52319309]
[1730185211461,16.2802,180.51,180.44,7.52319309]
[1730185211652,7.52319309,180.51,180.41,59.277484]
[1730185211877,5.5395,180.53,180.41,59.277484]
[1730185211878,7.52319309,180.5,180.44,7.52319309]
[1730185212260,7.52319309,180.51,180.45,7.52319309]
[1730185212458,16.0976,180.56,180.46,26.91789309]
[1730185212784,7.52319309,180.53,180.47,7.52319309]
[1730185213088,16.0976,180.56,180.49,7.52319309]
[1730185213269,7.52319309,180.54,180.49,7.52319309]
[1730185213466,7.52319309,180.54,180.48,7.52319309]
[1730185213670,7.52319309,180.53,180.47,7.52319309]
[1730185214273,7.52319309,180.5,180.46,13.8534]
[1730185214483,7.52319309,180.51,180.46,13.8534]
[1730185215396,7.52319309,180.52,180.46,21.37659309]
[1730185215597,7.52319309,180.49,180.46,13.8534]
[1730185216121,7.52319309,180.48,180.46,13.8534]
[1730185217207,7.52319309,180.49,180.44,7.52319309]
[1730185217507,7.52319309,180.5,180.44,7.52319309]
[1730185218616,30.0434,180.56,180.44,7.52319309]
[1730185218617,7.52319309,180.53,180.47,7.52319309]
[1730185218799,5.5386,180.55,180.48,7.52319309]
[1730185218989,7.52319309,180.53,180.48,7.52319309]
[1730185219594,7.52319309,180.53,180.48,5.5405]
[1730185221384,7.52319309,180.53,180.48,19.3924]
[1730185222002,7.52319309,180.52,180.48,19.3924]
[1730185222507,7.52319309,180.51,180.46,7.52319309]
[1730185223888,7.52319309,180.52,180.48,5.5407]
[1730185224069,7.52319309,180.51,180.48,5.5407]
[1730185225592,7.52319309,180.52,180.47,19.3931]
[1730185226074,5.5386,180.55,180.47,26.91629309]
[1730185226277,7.52319309,180.52,180.47,26.91629309]
[1730185227385,21.636,180.56,180.47,19.3931]
[1730185227589,7.52319309,180.54,180.49,7.52319309]
[1730185228485,7.52319309,180.54,180.5,5.5401]
[1730185232092,5.538,180.57,180.5,19.3905]
[1730185232281,7.52319309,180.55,180.5,26.91369309]
[1730185232891,7.52319309,180.54,180.5,19.3905]
[1730185233387,8.81987097,180.58,180.53,7.52319309]
[1730185233695,16.0948,180.61,180.5,47.0913]
[1730185233696,7.52319309,180.6,180.55,7.52319309]
[1730185234075,7.52319309,180.6,180.55,19.3851]
[1730185235472,7.52319309,180.6,180.55,7.52319309]
[1730185235669,16.0948,180.61,180.55,7.52319309]
[1730185235871,7.52319309,180.61,180.56,7.52319309]
[1730185236582,7.52319309,180.62,180.56,7.52319309]
[1730185236786,7.52319309,180.62,180.56,13.06119309]
[1730185237107,5.5364,180.63,180.57,7.52319309]
[1730185237301,5.5361,180.64,180.57,7.52319309]
[1730185237590,7.52319309,180.63,180.57,7.52319309]
[1730185238695,7.52319309,180.63,180.58,5.5377]
[1730185239582,7.52319309,180.62,180.58,5.5377]
[1730185240894,7.52319309,180.6,180.56,13.8458]
[1730185241597,5.5361,180.64,180.54,5.5389]
[1730185241771,7.52319309,180.57,180.54,5.5389]
[1730185242496,7.52319309,180.58,180.54,5.5389]
[1730185242694,7.52319309,180.58,180.54,19.3862]
[1730185242997,7.52319309,180.58,180.54,13.8473]
[1730185243992,7.52319309,180.58,180.54,19.3862]
[1730185245990,7.52319309,180.59,180.54,19.3862]
[1730185247175,5.5355,180.65,180.5,47.0913]
[1730185247383,7.52319309,180.64,180.59,7.52319309]
[1730185247783,7.52319309,180.64,180.58,7.52319309]
[1730185248503,7.52319309,180.64,180.59,5.5374]
[1730185249998,7.52319309,180.64,180.59,7.52319309]
[1730185251411,7.52319309,180.64,180.6,5.537]
[1730185252682,7.52319309,180.65,180.6,19.3797]
[1730185252999,7.52319309,180.64,180.6,19.3797]
[1730185254383,7.52319309,180.61,180.56,13.8451]
[1730185254589,5.5352,180.66,180.56,13.8451]
[1730185254590,7.52319309,180.58,180.56,13.8451]
[1730185254888,7.52319309,180.58,180.54,5.5389]
[1730185255399,7.52319309,180.56,180.53,13.848]
[1730185255593,7.52319309,180.55,180.53,19.3872]
[1730185255793,7.52319309,180.56,180.53,13.848]
[1730185256508,7.52319309,180.57,180.53,13.848]
[1730185257722,5.5376,180.59,180.53,13.848]
[1730185258011,7.52319309,180.55,180.53,13.848]
[1730185258208,7.52319309,180.54,180.46,15.4171]
[1730185258412,7.52319309,180.51,180.46,15.4171]
[1730185258713,7.52319309,180.53,180.48,7.52319309]
[1730185258903,20.83775056,180.58,180.49,21.37429309]
[1730185259097,20.83775056,180.58,180.5,7.52319309]
[1730185259098,7.52319309,180.55,180.5,7.52319309]
[1730185259484,7.52319309,180.56,180.5,7.52319309]
[1730185259795,7.52319309,180.56,180.51,7.52319309]
[1730185260204,7.52319309,180.52,180.49,13.8511]
[1730185260391,7.52319309,180.5,180.49,13.8511]
[1730185260587,15.3659,180.56,180.49,13.8511]
[1730185260791,7.52319309,180.54,180.49,13.8511]
[1730185261200,5.5382,180.57,180.49,19.3915]
[1730185261399,7.52319309,180.52,180.49,19.3915]
[1730185261889,5.5382,180.57,180.41,15.4675]
[1730185261890,7.52319309,180.5,180.41,15.4675]
[1730185262086,7.52319309,180.47,180.42,19.3991]
[1730185262390,7.52319309,180.48,180.43,7.52319309]
[1730185262586,7.52319309,180.49,180.43,7.52319309]
[1730185263215,7.52319309,180.49,180.44,19.397]
[1730185263598,7.52319309,180.48,180.44,19.397]
[1730185263920,7.52319309,180.46,180.44,19.397]
[1730185264119,7.52319309,180.45,180.4,13.8574]
[1730185264303,7.52319309,180.44,180.4,13.8574]
[1730185264496,7.52319309,180.45,180.4,13.8574]
[1730185264696,23.776884,180.51,180.41,7.52319309]
[1730185264905,7.52319309,180.46,180.41,7.52319309]
[1730185265200,5.5404,180.5,180.42,19.3991]
[1730185265413,7.52319309,180.46,180.42,19.3991]
[1730185265923,7.52319309,180.45,180.42,19.3991]
[1730185266220,7.52319309,180.46,180.42,19.3991]
[1730185266412,7.52319309,180.46,180.42,13.8565]
[1730185267395,7.52319309,180.45,180.42,13.8565]
[1730185267604,7.52319309,180.46,180.42,13.8565]
[1730185267815,15.995,180.52,180.42,21.37969309]
[1730185267998,15.995,180.52,180.44,7.52319309]
[1730185268204,7.52319309,180.49,180.44,7.52319309]
[1730185268419,7.52319309,180.48,180.43,7.52319309]
[1730185268823,15.995,180.52,180.44,7.52319309]
[1730185269012,7.52319309,180.53,180.47,7.52319309]
[1730185269315,7.52319309,180.55,180.5,7.52319309]
[1730185269517,7.52319309,180.55,180.51,5.5398]
[1730185270499,11.7295958,180.54,180.48,11.7295958]
[1730185271022,11.7295958,180.55,180.49,11.7295958]
[1730185271824,11.7295958,180.55,180.5,31.1200958]
[1730185273922,11.7295958,180.56,180.5,31.1200958]
[1730185274114,11.7295958,180.56,180.51,11.7295958]
[1730185275430,11.7295958,180.56,180.51,17.2693958]
[1730185275633,11.7295958,180.57,180.51,17.2693958]
[1730185276126,11.7295958,180.56,180.51,17.2693958]
[1730185276815,11.7295958,180.57,180.52,11.7295958]
[1730185277112,26.08724636,180.58,180.52,11.7295958]
[1730185277314,20.54954636,180.58,180.52,11.7295958]
[1730185277516,8.81995056,180.58,180.53,11.7295958]
[1730185278620,20.54954636,180.58,180.53,11.7295958]
[1730185279029,20.54954636,180.58,180.53,17.2685958]
[1730185279841,8.81995056,180.58,180.53,17.2685958]
[1730185281822,8.81995056,180.58,180.54,11.7295958]
[1730185282022,8.81995056,180.58,180.55,11.7295958]
[1730185282732,5.537,180.61,180.56,11.7295958]
[1730185283613,17.2665958,180.61,180.55,11.7295958]
[1730185284134,11.7295958,180.61,180.56,11.7295958]
[1730185284314,11.7295958,180.61,180.55,11.7295958]
[1730185284517,15.4361,180.63,180.54,11.7295958]
[1730185284726,11.7295958,180.58,180.52,11.7295958]
[1730185285031,11.7295958,180.59,180.53,11.7295958]
[1730185285726,11.7295958,180.59,180.55,5.5386]
[1730185285925,11.7295958,180.6,180.55,5.5386]
[1730185287360,27.1656958,180.63,180.57,11.7295958]
[1730185287637,11.7295958,180.62,180.57,11.7295958]
[1730185288018,11.7295958,180.62,180.56,11.7295958]
[1730185288921,11.7295958,180.61,180.56,11.7295958]
[1730185289426,11.7295958,180.61,180.57,5.538]
[1730185289928,11.7295958,180.6,180.57,5.538]
[1730185290510,11.7295958,180.6,180.55,21.34926575]
[1730185290511,7.50276575,180.6,180.55,21.34926575]
[1730185291041,7.50276575,180.61,180.55,21.34926575]
[1730185291832,7.50276575,180.61,180.57,5.538]
[1730185293253,7.50276575,180.62,180.57,5.538]
[1730185293840,7.50276575,180.61,180.56,5.5383]
[1730185294040,7.50276575,180.59,180.56,5.5383]
[1730185295351,7.50276575,180.59,180.55,19.3851]
[1730185295667,7.50276575,180.6,180.55,26.88786575]
[1730185296427,7.50276575,180.58,180.55,19.3851]
[1730185296933,7.50276575,180.59,180.55,19.3851]
[1730185297132,5.5372,180.6,180.55,19.3851]
[1730185297364,7.50276575,180.59,180.55,19.3851]
[1730185297959,15.4361,180.63,180.51,27.6992]
[1730185298146,7.50276575,180.56,180.52,19.3883]
[1730185298354,7.50276575,180.55,180.52,19.3883]
[1730185298739,7.50276575,180.54,180.52,13.8488]
[1730185299245,30.011063,180.6,180.46,44.3588]
[1730185299246,7.50276575,180.53,180.48,19.3925]
[1730185299433,7.50276575,180.52,180.48,19.3925]
[1730185299633,7.50276575,180.51,180.48,19.3925]
[1730185300060,7.50276575,180.51,180.48,13.8518]
[1730185300260,7.50276575,180.5,180.48,13.8518]
[1730185302550,7.50276575,180.5,180.46,27.7065]
[1730185303740,7.50276575,180.49,180.46,27.7065]
[1730185309270,7.50276575,180.5,180.46,27.7065]
[1730185309445,7.50276575,180.49,180.46,27.7065]
[1730185309645,7.50276575,180.48,180.45,19.3959]
[1730185309877,7.50276575,180.47,180.45,19.3959]
[1730185310251,7.50276575,180.46,180.39,7.50276575]
[1730185310456,7.50276575,180.45,180.39,7.50276575]
[1730185310760,7.50276575,180.45,180.4,7.50276575]
[1730185311346,7.50276575,180.45,180.41,19.4002]
[1730185312444,7.50276575,180.46,180.41,19.4002]
[1730185312969,7.50276575,180.44,180.41,19.4002]
[1730185313452,7.50276575,180.45,180.41,19.4002]
[1730185313894,7.50276575,180.44,180.38,35.22196575]
[1730185314076,7.50276575,180.44,180.38,54.62536575]
[1730185314369,7.50276575,180.44,180.39,7.50276575]
[1730185315170,7.50276575,180.4,180.34,5.5449]
[1730185315478,7.50276575,180.4,180.35,7.50276575]
[1730185315649,7.50276575,180.41,180.36,7.50276575]
[1730185315857,7.50276575,180.41,180.35,7.50276575]
[1730185316243,7.50276575,180.4,180.35,7.50276575]
[1730185316447,7.50276575,180.4,180.36,5.5444]
[1730185317353,7.50276575,180.4,180.36,19.4055]
[1730185319091,7.50276575,180.39,180.36,19.4055]
[1730185319386,7.50276575,180.39,180.34,7.50276575]
[1730185319387,7.50276575,180.39,180.34,5.5448]
[1730185320391,7.50276575,180.38,180.34,5.5448]
[1730185320696,7.50276575,180.37,180.34,5.5448]
[1730185321302,7.50276575,180.36,180.32,13.8635]
[1730185321483,7.50276575,180.37,180.32,26.91166575]
[1730185325377,5.5423,180.43,180.35,7.50276575]
[1730185325581,7.50276575,180.4,180.35,7.50276575]
[1730185325990,7.50276575,180.39,180.32,19.4089]
[1730185326292,7.50276575,180.38,180.33,7.50276575]
[1730185326984,7.50276575,180.38,180.32,26.91166575]
[1730185327855,7.50276575,180.36,180.32,19.4089]
[1730185328177,7.50276575,180.35,180.29,5.5465]
[1730185328552,7.50276575,180.35,180.3,7.50276575]
[1730185329167,0.96377662,180.41,180.29,19.413]
[1730185329168,7.50276575,180.37,180.31,7.50276575]
[1730185329376,7.50276575,180.36,180.31,7.50276575]
[1730185329554,13.04746575,180.36,180.31,7.50276575]
[1730185330183,13.04746575,180.36,180.3,5.5462]
[1730185330476,7.50276575,180.35,180.29,26.91586575]
[1730185330680,7.50276575,180.35,180.3,7.50276575]
[1730185330887,7.50276575,180.34,180.29,19.4131]
[1730185331056,28.58176575,180.37,180.32,7.50276575]
[1730185331569,28.58176575,180.37,180.31,13.04856575]
[1730185331768,7.50276575,180.34,180.3,5.5462]
[1730185331977,7.50276575,180.35,180.3,13.04896575]
[1730185332277,7.50276575,180.36,180.31,7.50276575]
[1730185332769,13.04716575,180.36,180.31,7.50276575]
[1730185333083,13.04716575,180.36,180.3,13.04896575]
[1730185335067,7.50276575,180.35,180.3,13.04896575]
[1730185335290,7.50276575,180.34,180.29,13.8665]
[1730185335501,7.50276575,180.35,180.3,7.50276575]
[1730185335891,7.50276575,180.33,180.29,19.4131]
[1730185336706,7.50276575,180.33,180.29,13.8665]
[1730185336899,13.04826575,180.33,180.29,13.8665]
[1730185337208,7.50276575,180.32,180.27,13.04976575]
[1730185337897,7.50276575,180.32,180.27,5.547]
[1730185338093,7.50276575,180.32,180.26,26.91906575]
[1730185338497,13.04856575,180.32,180.27,7.50276575]
[1730185338692,13.04856575,180.32,180.26,21.37156575]
[1730185339717,13.04856575,180.32,180.26,26.91906575]
[1730185340629,13.04856575,180.32,180.27,7.50276575]
[1730185345200,21.9793,180.35,180.31,7.50276575]
[1730185345724,29.48206575,180.35,180.3,7.50276575]
[1730185346506,7.50276575,180.34,180.29,13.04906575]
[1730185346692,7.50276575,180.34,180.29,5.5463]
[1730185349090,13.04786575,180.34,180.29,5.5463]
[1730185350969,7.50276575,180.33,180.27,26.91786575]
[1730185351785,7.50276575,180.32,180.27,26.91786575]
[1730185352290,13.04826575,180.33,180.28,7.50276575]
[1730185353579,5.5455,180.33,180.28,7.50276575]
[1730185354374,5.5455,180.33,180.29,7.50276575]
[1730185358191,5.545,180.35,180.31,7.50276575]
[1730185358385,5.545,180.35,180.32,7.50276575]
[1730185359072,5.545,180.35,180.31,7.50276575]
[1730185363402,7.50276575,180.32,180.25,19.4174]
[1730185363703,7.50276575,180.32,180.27,7.50276575]
[1730185364274,8.55076004,180.38,180.24,16.1441]
[1730185364475,5.5441,180.37,180.31,7.50276575]
[1730185364724,7.50276575,180.36,180.31,7.50276575]
[1730185365087,7.50276575,180.35,180.31,7.50276575]
[1730185365475,5.545,180.34,180.31,7.50276575]
[1730185365676,5.5441,180.37,180.32,7.50276575]
[1730185366078,13.04686575,180.37,180.32,7.50276575]
[1730185374925,13.04686575,180.37,180.24,43.8837]
[1730185374926,5.5441,180.37,180.33,7.50276575]
[1730185379909,5.5441,180.37,180.3,5.546]
[1730185380110,5.5441,180.37,180.34,7.50276575]
[1730185380933,5.5441,180.37,180.33,7.50276575]
[1730185386612,8.55076004,180.38,180.36,7.50276575]
[1730185386814,8.55076004,180.38,180.37,7.50276575]
[1730185388421,8.55076004,180.38,180.35,7.50276575]
[1730185390929,7.50276575,180.41,180.35,7.50276575]
[1730185391130,9.66422325,180.4,180.35,7.50276575]
[1730185391331,5.5432,180.4,180.35,7.50276575]
[1730185392742,5.5426,180.42,180.36,7.50276575]
[1730185393040,11.62332704,180.41,180.36,7.50276575]
[1730185393241,7.50276575,180.41,180.36,7.50276575]
[1730185394231,5.5429,180.41,180.38,7.50276575]
[1730185394445,5.5429,180.41,180.37,7.50276575]
[1730185395645,13.04566575,180.41,180.36,7.50276575]
[1730185396016,5.5429,180.41,180.35,5.5446]
[1730185396216,5.5429,180.41,180.36,7.50276575]
[1730185398448,5.5429,180.41,180.38,7.50276575]
[1730185399027,5.5429,180.41,180.37,7.50276575]
[1730185402845,5.5423,180.43,180.39,7.50276575]
[1730185403442,4.12071253,180.42,180.38,7.50276575]
[1730185403637,13.04546575,180.42,180.37,7.50276575]
[1730185404145,5.5427,180.42,180.38,7.50276575]
[1730185404355,5.5427,180.42,180.39,7.50276575]
[1730185404648,5.5423,180.43,180.39,7.50276575]
[1730185406527,13.04506575,180.43,180.37,7.50276575]
[1730185407558,13.04506575,180.43,180.37,13.04676575]
[1730185409347,13.04506575,180.43,180.36,13.8611]
[1730185409550,13.04506575,180.43,180.38,7.50276575]
[1730185409742,5.5423,180.43,180.38,7.50276575]
[1730185410350,13.04506575,180.43,180.38,7.50276575]
[1730185411549,8.63897836,180.45,180.38,7.50276575]
[1730185411754,7.50276575,180.43,180.38,7.50276575]
[1730185412456,5.542,180.44,180.39,7.50276575]
[1730185412641,7.50276575,180.43,180.38,7.50276575]
[1730185413556,13.04506575,180.43,180.38,13.04646575]
[1730185414833,5.5423,180.43,180.39,7.50276575]
[1730185415865,5.542,180.44,180.4,7.50276575]
[1730185416478,14.18077836,180.45,180.4,7.50276575]
[1730185416658,4.11747305,180.44,180.4,7.50276575]
[1730185416834,14.18077836,180.45,180.4,7.50276575]
[1730185417033,4.11756994,180.44,180.4,7.50276575]
[1730185417251,14.18077836,180.45,180.4,7.50276575]
[1730185417460,4.11749498,180.44,180.4,7.50276575]
[1730185417664,14.18077836,180.45,180.4,7.50276575]
[1730185417838,4.11751677,180.44,180.4,7.50276575]
[1730185418033,14.18077836,180.45,180.4,7.50276575]
[1730185418357,4.11751787,180.44,180.41,7.50276575]
[1730185418541,14.18077836,180.45,180.41,7.50276575]
[1730185418738,4.11750748,180.44,180.41,7.50276575]
[1730185418956,14.18077836,180.45,180.41,7.50276575]
[1730185419147,4.11752641,180.44,180.41,7.50276575]
[1730185419456,14.18077836,180.45,180.41,7.50276575]
[1730185419751,4.11791103,180.44,180.41,7.50276575]
[1730185419950,14.18077836,180.45,180.41,7.50276575]
[1730185420155,4.11792177,180.44,180.41,7.50276575]
[1730185420342,14.18077836,180.45,180.41,7.50276575]
[1730185420537,4.11786084,180.44,180.41,7.50276575]
[1730185420737,14.18077836,180.45,180.41,7.50276575]
[1730185420941,4.11785737,180.44,180.41,7.50276575]
[1730185421249,14.18077836,180.45,180.41,7.50276575]
[1730185421436,4.11787103,180.44,180.41,7.50276575]
[1730185421634,14.18077836,180.45,180.41,7.50276575]
[1730185421852,4.11787285,180.44,180.41,7.50276575]
[1730185422058,8.63897836,180.45,180.42,7.50276575]
[1730185423351,8.63897836,180.45,180.41,7.50276575]
[1730185423541,8.63897836,180.45,180.4,13.04576575]
[1730185424444,7.50276575,180.44,180.39,13.8588]
[1730185424660,7.50276575,180.44,180.39,21.36156575]
[1730185425237,13.04486575,180.44,180.39,21.36156575]
[1730185425658,5.5421,180.44,180.39,26.90506575]
[1730185426742,5.5421,180.44,180.4,7.50276575]
[1730185431146,8.63897836,180.45,180.43,7.50276575]
[1730185432261,8.63897836,180.45,180.44,7.50276575]
[1730185432467,13.8496,180.52,180.44,7.50276575]
[1730185432468,5.5395,180.52,180.44,7.50276575]
[1730185432644,11.6264108,180.51,180.46,7.50276575]
[1730185432846,4.12364505,180.5,180.47,7.50276575]
[1730185433047,4.12364505,180.49,180.47,7.50276575]
[1730185433246,4.12364505,180.48,180.47,7.50276575]
[1730185433760,4.12364505,180.48,180.46,7.50276575]
[1730185433963,13.04256575,180.51,180.45,7.50276575]
[1730185434152,11.62530565,180.5,180.44,7.50276575]
[1730185434466,4.1225399,180.49,180.44,7.50276575]
[1730185434775,4.1225399,180.48,180.44,7.50276575]
[1730185435067,7.50276575,180.5,180.44,7.50276575]
[1730185435275,4.12139136,180.49,180.44,7.50276575]
[1730185435488,4.12088842,180.48,180.44,7.50276575]
[1730185435696,5.5404,180.49,180.44,7.50276575]
[1730185435984,4.12085337,180.48,180.44,7.50276575]
[1730185436195,5.5404,180.49,180.44,7.50276575]
[1730185436374,4.12043069,180.48,180.44,7.50276575]
[1730185436569,5.5404,180.49,180.44,7.50276575]
[1730185436776,4.1205412,180.48,180.44,7.50276575]
[1730185437080,5.5404,180.49,180.44,7.50276575]
[1730185437377,4.12083446,180.48,180.45,7.50276575]
[1730185437551,5.5404,180.49,180.45,7.50276575]
[1730185437868,4.12054141,180.48,180.45,7.50276575]
[1730185438041,5.5404,180.49,180.45,7.50276575]
[1730185438241,4.12059705,180.48,180.45,7.50276575]
[1730185438441,5.5404,180.49,180.45,7.50276575]
[1730185438642,4.12119272,180.48,180.45,7.50276575]
[1730185438865,5.5404,180.49,180.45,7.50276575]
[1730185439165,4.12128977,180.48,180.45,7.50276575]
[1730185439367,5.5404,180.49,180.45,7.50276575]
[1730185439559,4.12120436,180.48,180.45,7.50276575]
[1730185439769,7.50276575,180.51,180.45,7.50276575]
[1730185439976,4.12145615,180.5,180.45,7.50276575]
[1730185440293,4.12145615,180.49,180.44,7.50276575]
[1730185440477,7.50276575,180.51,180.45,7.50276575]
[1730185440797,4.12174438,180.5,180.45,7.50276575]
[1730185441091,4.12174438,180.49,180.45,7.50276575]
[1730185441343,4.12174438,180.48,180.39,39.4023]
[1730185441622,13.04326575,180.49,180.44,7.50276575]
[1730185441785,4.1212957,180.48,180.44,7.50276575]
[1730185441992,13.04326575,180.49,180.44,7.50276575]
[1730185442188,4.12141714,180.48,180.44,7.50276575]
[1730185442389,13.04326575,180.49,180.44,7.50276575]
[1730185442585,4.12121251,180.48,180.44,7.50276575]
[1730185442788,13.04326575,180.49,180.44,7.50276575]
[1730185442980,4.12123405,180.48,180.45,7.50276575]
[1730185443183,5.5405,180.49,180.45,7.50276575]
[1730185443691,4.12087311,180.48,180.45,7.50276575]
[1730185443902,5.5405,180.49,180.45,7.50276575]
[1730185444102,4.12100162,180.48,180.43,5.5421]
[1730185444288,13.04326575,180.49,180.44,7.50276575]
[1730185444482,4.12057085,180.48,180.44,7.50276575]
[1730185444711,5.5405,180.49,180.44,7.50276575]
[1730185444883,4.12056003,180.48,180.44,7.50276575]
[1730185445195,5.5405,180.49,180.44,7.50276575]
[1730185445399,4.12023,180.48,180.45,7.50276575]
[1730185445591,5.5405,180.49,180.45,7.50276575]
[1730185445798,5.5405,180.49,180.44,7.50276575]
[1730185448090,5.5405,180.49,180.45,7.50276575]
[1730185449188,7.50276575,180.51,180.45,7.50276575]
[1730185449363,4.12110773,180.5,180.47,7.50276575]
[1730185449681,15.505,180.53,180.48,7.50276575]
[1730185449682,4.12110773,180.49,180.48,7.50276575]
[1730185449878,4.12110773,180.5,180.48,7.50276575]
[1730185450258,5.5398,180.51,180.48,7.50276575]
[1730185450467,4.12177593,180.5,180.48,7.50276575]
[1730185450666,5.5398,180.51,180.48,7.50276575]
[1730185450865,4.12187491,180.5,180.48,7.50276575]
[1730185451083,5.5398,180.51,180.48,7.50276575]
[1730185451283,4.12267042,180.5,180.48,7.50276575]
[1730185451485,5.5398,180.51,180.48,7.50276575]
[1730185451694,4.12226041,180.5,180.48,7.50276575]
[1730185451872,5.5398,180.51,180.48,7.50276575]
[1730185452181,4.12253985,180.5,180.48,7.50276575]
[1730185452376,5.5398,180.51,180.48,7.50276575]
[1730185452590,4.12221578,180.5,180.48,7.50276575]
[1730185452755,5.5392,180.53,180.48,7.50276575]
[1730185452956,4.12246582,180.52,180.48,7.50276575]
[1730185453183,4.12246582,180.51,180.48,7.50276575]
[1730185453481,6.50268054,180.53,180.48,7.50276575]
[1730185453668,4.12240997,180.52,180.48,7.50276575]
[1730185453858,4.12240997,180.51,180.48,7.50276575]
[1730185454062,5.5392,180.53,180.48,7.50276575]
[1730185454269,4.12231679,180.52,180.48,7.50276575]
[1730185454589,4.12231679,180.51,180.48,7.50276575]
[1730185454779,5.5399,180.51,180.48,7.50276575]
[1730185455658,7.50276575,180.54,180.48,7.50276575]
[1730185455864,9.66085429,180.53,180.48,7.50276575]
[1730185456184,4.12165429,180.52,180.48,7.50276575]
[1730185456386,4.12165429,180.51,180.48,7.50276575]
[1730185456684,5.5392,180.53,180.48,7.50276575]
[1730185456873,5.5398,180.51,180.48,7.50276575]
[1730185458186,5.5392,180.53,180.49,7.50276575]
[1730185458366,4.12148831,180.52,180.51,7.50276575]
[1730185459088,5.5392,180.53,180.51,7.50276575]
[1730185459282,21.34866575,180.56,180.51,7.50276575]
[1730185459592,9.66107966,180.55,180.51,7.50276575]
[1730185459760,4.12247966,180.54,180.51,7.50276575]
[1730185459965,5.5386,180.55,180.52,7.50276575]
[1730185460267,5.5386,180.55,180.51,7.50276575]
[1730185460978,5.5383,180.56,180.51,7.50276575]
[1730185461186,4.12205556,180.55,180.51,7.50276575]
[1730185461485,5.5383,180.56,180.51,7.50276575]
[1730185463995,5.5383,180.56,180.52,7.50276575]
[1730185470194,13.04106575,180.56,180.44,6.4535]
[1730185470380,13.04106575,180.56,180.51,7.50276575]
[1730185470902,5.5383,180.56,180.52,7.50276575]
[1730185472111,5.5374,180.59,180.53,7.50276575]
[1730185472410,4.1196793,180.58,180.54,7.50276575]
[1730185472589,4.1196793,180.57,180.54,7.50276575]
[1730185472775,5.5374,180.59,180.54,7.50276575]
[1730185472976,4.1193997,180.58,180.54,7.50276575]
[1730185473176,5.5374,180.59,180.55,7.50276575]
[1730185473376,14.35568056,180.6,180.55,7.50276575]
[1730185473596,14.35568056,180.6,180.57,7.50276575]
[1730185474186,8.81858056,180.6,180.57,7.50276575]
[1730185474382,8.81858056,180.6,180.58,7.50276575]
[1730185478198,8.81858056,180.6,180.59,7.50276575]
[1730185479406,8.81858056,180.6,180.58,7.50276575]
[1730185479594,8.81858056,180.6,180.55,13.846]
[1730185479801,16.32134631,180.6,180.55,21.34876575]
[1730185480004,14.35568056,180.6,180.55,21.34876575]
[1730185480705,14.35568056,180.6,180.56,7.50276575]
[1730185480890,14.35568056,180.6,180.57,7.50276575]
[1730185482811,7.50276575,180.62,180.57,7.50276575]
[1730185483899,5.5367,180.61,180.57,7.50276575]
[1730185486416,13.8396,180.65,180.57,7.50276575]
[1730185486614,7.50276575,180.63,180.58,7.50276575]
[1730185487915,5.5364,180.62,180.58,7.50276575]
[1730185488117,5.5364,180.62,180.57,13.04066575]
[1730185489211,7.50276575,180.64,180.59,7.50276575]
[1730185489412,13.03826575,180.65,180.6,7.50276575]
[1730185490192,13.03826575,180.65,180.57,19.3829]
[1730185490193,5.5355,180.65,180.61,7.50276575]
[1730185492716,5.5352,180.66,180.61,7.50276575]
[1730185493220,5.5352,180.66,180.62,7.50276575]
[1730185494307,14.71288089,180.67,180.63,7.50276575]
[1730185496400,14.71288089,180.67,180.62,7.50276575]
[1730185497810,7.50276575,180.66,180.6,7.50276575]
[1730185498129,7.50276575,180.66,180.61,7.50276575]
[1730185499818,5.5355,180.65,180.61,7.50276575]
[1730185502034,7.50276575,180.62,180.56,6.4679]
[1730185502331,7.50276575,180.61,180.56,7.50276575]
[1730185502706,7.50276575,180.61,180.55,7.50276575]
[1730185503734,5.537,180.6,180.55,7.50276575]
[1730185504110,5.537,180.6,180.56,7.50276575]
[1730185508721,7.50276575,180.59,180.54,34.9426]
[1730185508926,5.5361,180.63,180.55,7.50276575]